Workbook

Sheet Feuil1
A1: Client | B1: Date | C1: Oppération | D1: Parcelle | E1: Culture | F1: Surface | G1: Produit | H1: Observation | I1: Campagne
A2: Florian | B2: 15/12/2014 | C2: Moisson | D2: Sous la route | E2: =VLOOKUP(Tableau1[Parcelle],Tableau7[[Parcelles]:[Campagne]],3,0) -> Blé | F2: =VLOOKUP(Tableau1[Parcelle],Tableau7[[Parcelles]:[Campagne]],2,0) -> 5.35 | G2: Urée 46% | I2: 2013/2014
A3: Florian | B3: 16/12/2014 | C3: Pulvérisation | D3: La plaine | E3: =VLOOKUP(Tableau1[Parcelle],Tableau7[[Parcelles]:[Campagne]],3,0) -> Tournesol | F3: =VLOOKUP(Tableau1[Parcelle],Tableau7[[Parcelles]:[Campagne]],2,0) -> 20.50 | I3: 2013/2014
A4: Florian | B4: 17/12/2014 | C4: Labour | D4: Coteau | E4: =VLOOKUP(Tableau1[Parcelle],Tableau7[[Parcelles]:[Campagne]],3,0) -> Tournesol | F4: =VLOOKUP(Tableau1[Parcelle],Tableau7[[Parcelles]:[Campagne]],2,0) -> 8.35 | I4: 2013/2014
A5: Florian | B5: 16/12/2014 | C5: Moisson | D5: Devant la maison | E5: =VLOOKUP(Tableau1[Parcelle],Tableau7[[Parcelles]:[Campagne]],3,0) -> Tournesol | F5: =VLOOKUP(Tableau1[Parcelle],Tableau7[[Parcelles]:[Campagne]],2,0) -> 2.50 | G5: Axial | I5: 2013/2014
A6: Florian | B6: 15/12/2014 | C6: Labour | D6: Coteau | E6: =VLOOKUP(Tableau1[Parcelle],Tableau7[[Parcelles]:[Campagne]],3,0) -> Tournesol | F6: =VLOOKUP(Tableau1[Parcelle],Tableau7[[Parcelles]:[Campagne]],2,0) -> 8.35 | I6: 2013/2014
A7: Durand | B7: 13/12/2014 | C7: Pulvérisation | D7: Bouscas | E7: =VLOOKUP(Tableau1[Parcelle],Tableau7[[Parcelles]:[Campagne]],3,0) -> Blé | F7: =VLOOKUP(Tableau1[Parcelle],Tableau7[[Parcelles]:[Campagne]],2,0) -> 10.50 | G7: Amonitrate 33.5% | I7: 2013/2014
A8: Florian | B8: 17/12/2014 | C8: Moisson | D8: sgdsfd | E8: =VLOOKUP(Tableau1[Parcelle],Tableau7[[Parcelles]:[Campagne]],3,0) -> Maïs | F8: =VLOOKUP(Tableau1[Parcelle],Tableau7[[Parcelles]:[Campagne]],2,0) -> 55.00 | G8: Urée 46% | I8: 2013/2014
A9: Durand | B9: 17/12/2014 | C9: Engrais | D9: sgdsfd | E9: =VLOOKUP(Tableau1[Parcelle],Tableau7[[Parcelles]:[Campagne]],3,0) -> Maïs | F9: =VLOOKUP(Tableau1[Parcelle],Tableau7[[Parcelles]:[Campagne]],2,0) -> 55.00 | G9: Amonitrate 33.5% | I9: 2013/2014
A10: Durand | B10: 18/12/2014 | C10: Moisson | D10: Sous la route | E10: =VLOOKUP(Tableau1[Parcelle],Tableau7[[Parcelles]:[Campagne]],3,0) -> Blé | F10: =VLOOKUP(Tableau1[Parcelle],Tableau7[[Parcelles]:[Campagne]],2,0) -> 5.35 | H10: 55 | I10: 2013/2014
A11: Durand | B11: 18/12/2014 | C11: Pulvérisation | D11: Sous la route | E11: =VLOOKUP(Tableau1[Parcelle],Tableau7[[Parcelles]:[Campagne]],3,0) -> Blé | F11: =VLOOKUP(Tableau1[Parcelle],Tableau7[[Parcelles]:[Campagne]],2,0) -> 5.35 | G11: Axial | I11: 2013/2014
A12: Florian | B12: 20/12/2014 | C12: Pulvérisation | D12: klhk | E12: =VLOOKUP(Tableau1[Parcelle],Tableau7[[Parcelles]:[Campagne]],3,0) -> Maïs | F12: =VLOOKUP(Tableau1[Parcelle],Tableau7[[Parcelles]:[Campagne]],2,0) -> 85.00 | G12: Amonitrate 33.5% | I12: 2014/2015

Sheet Base
A1: Opération | B1: Tarrif | C1: Colonne1 | D1: Colonne2 | F1: Cultures | H1: Produits | J1: Client | K1: Parcelles | L1: Surface | M1: Culture | N1: Campagne | P1: Campagne | Q1: Campagne en cour (1 oui ; 0 non) | AD1: Clients | AE1: Adresse | AF1: Code postal | AG1: Ville | AH1: Téléphone | AJ1: Campagne | AK1: Client | AL1: Parcelle
A2: Labour | B2: 090.00€ | F2: Blé | H2: Roundup | J2: Durand | K2: Bouscas | L2: 010.50 | M2: Blé | N2: 2014/2015 | P2: 2013/2014 | Q2: 1 | AD2: Durand | AE2: St Gauzens | AF2: 81390 | AG2: ST Gauzens | AH2: 06-15-45-85-58 | AJ2: 2014/2015 | AK2: Durand | AL2: Bouscas
A3: Pulvérisation | B3: 015.00€ | F3: Maïs | H3: Amonitrate 33.5% | J3: Durand | K3: Sous la route | L3: 005.35 | M3: Blé | N3: 2013/2014 | P3: 2014/2015 | Q3: 0 | AD3: Florian | AE3: Le Bouscas | AF3: 81600 | AG3: Cadalen | AH3: 06-45-68-85-27 | AJ3: 2014/2015 | AK3: Durand | AL3: Sous la route
A4: Moisson | B4: 091.00€ | F4: Tournesol | H4: Urée 46% | J4: Florian | K4: La plaine | L4: 020.50 | M4: Tournesol | N4: 2014/2015 | AD4: Moi | AE4: Callepe | AF4: 81120 | AG4: Lombers | AH4: 06-45-68-85-27 | AJ4: 2014/2015 | AK4: Florian | AL4: La plaine
A5: Engrais | B5: 015.00€ | F5: Colza | H5: Axial | J5: Durand | K5: Devant la maison | L5: 002.50 | M5: Tournesol | N5: 2014/2015 | AD5: Tisse | AE5: Le Bouscas | AF5: 81600 | AG5: Cadalen | AH5: 06-45-64-09-27 | AJ5: 2014/2015 | AK5: Florian | AL5: Devant la maison
A6: Déchaumage | B6: 030.00€ | F6: Orge | J6: Moi | K6: Coteau | L6: 008.35 | M6: Tournesol | N6: 2014/2015 | AJ6: 2014/2015 | AK6: Moi | AL6: Coteau
J7: Moi | K7: Au dessus | L7: 007.35 | M7: Blé | N7: 2014/2015 | AJ7: 2014/2015 | AK7: Moi | AL7: Au dessus
J8: Moi | K8: Devant la maison | L8: 002.50 | M8: Blé | N8: 2014/2015 | AJ8: 2014/2015 | AK8: Moi | AL8: Devant la maison
J9: Florian | K9: Plateau | L9: 015.00 | M9: Tournesol | N9: 2014/2015 | AJ9: 2014/2015 | AK9: Florian | AL9: Plateau
J10: Florian | K10: Essais | L10: 004.25 | M10: Blé | N10: 2014/2015 | AJ10: 2014/2015 | AK10: Florian | AL10: Essais
J11: Durand | K11: sgfsd | L11: 015.00 | M11: Tournesol | N11: 2014/2015 | AJ11: 2014/2015 | AK11: Durand | AL11: sgfsd
J12: Florian | K12: klhk | L12: 085.00 | M12: Maïs | N12: 2014/2015 | AJ12: 2014/2015 | AK12: Florian | AL12: klhk
J13: Florian | K13: sgdsfd | L13: 055.00 | M13: Maïs | N13: 2014/2015 | AJ13: 2014/2015 | AK13: Florian | AL13: sgdsfd
J14: Florian | K14: dsfh | L14: 045.00 | M14: Maïs | N14: 2014/2015 | AJ14: 2013/2014 | AK14: Florian | AL14: dsfh
J15: Moi | K15: zetrf | L15: 085.00 | M15: Tournesol | N15: 2014/2015 | AJ15: 2013/2014 | AK15: Moi | AL15: zetrf
J16: Florian | K16: Essais | L16: 045.00 | M16: Maïs | N16: 2014/2015 | AJ16: 2014/2015 | AK16: Florian | AL16: Essais
J17: Florian | K17: Essais0 | L17: 015.00 | M17: Maïs | N17: 2014/2015 | AJ17: 2014/2015 | AK17: Florian | AL17: Essais0
J18: Moi | K18: Flo | L18: 015.00 | M18: Colza | N18: 2014/2015 | AJ18: 2014/2015 | AK18: Moi | AL18: Flo

Sheet Résultat
B2: =Base!A2 -> Labour | C2: =Base!A2 -> Labour | D2: =Base!A3 -> Pulvérisation | E2: =Base!A3 -> Pulvérisation | F2: =Base!A4 -> Moisson | G2: =Base!A4 -> Moisson | H2: =Base!A5 -> Engrais | I2: =Base!A5 -> Engrais | J2: =Base!A6 -> Déchaumage | K2: =Base!A6 -> Déchaumage | L2: 000.00 | M2: =Base!A7 -> 0 | N2: =Base!A8 -> 0 | O2: =Base!A8 -> 0
A3: =Base!AD2 -> Durand | B3: =SUMPRODUCT((Tableau1[Client]=Tableau2[[#This Row],[Clients]])*(Tableau1[Oppération]=Résultat!$B$2)*(Tableau1[Surface])) -> 0.00 ha | C3: =IF(C$2>0,((SUMPRODUCT((Tableau1[Client]=$A3)*(Tableau1[Oppération]=Résultat!C$2)*(Tableau1[Surface])))*VLOOKUP(C$2,Tableau6[],2,0))," ") -> 0 | D3: =SUMPRODUCT((Tableau1[Client]=Tableau2[[#This Row],[Clients]])*(Tableau1[Oppération]=Résultat!$D$2)*(Tableau1[Surface])) -> 15.85 ha | E3: =IF(E$2>0,((SUMPRODUCT((Tableau1[Client]=$A3)*(Tableau1[Oppération]=Résultat!E$2)*(Tableau1[Surface])))*VLOOKUP(E$2,Tableau6[],2,0))," ") -> 237.75 € | F3: =SUMPRODUCT((Tableau1[Client]=Tableau2[[#This Row],[Clients]])*(Tableau1[Oppération]=Résultat!$F$2)*(Tableau1[Surface])) -> 5.35 ha | G3: =IF(G$2>0,((SUMPRODUCT((Tableau1[Client]=$A3)*(Tableau1[Oppération]=Résultat!G$2)*(Tableau1[Surface])))*VLOOKUP(G$2,Tableau6[],2,0))," ") -> 486.85 € | H3: =SUMPRODUCT((Tableau1[Client]=Tableau2[[#This Row],[Clients]])*(Tableau1[Oppération]=Résultat!$H$2)*(Tableau1[Surface])) -> 55.00 ha | I3: =IF(I$2>0,((SUMPRODUCT((Tableau1[Client]=$A3)*(Tableau1[Oppération]=Résultat!I$2)*(Tableau1[Surface])))*VLOOKUP(I$2,Tableau6[],2,0))," ") -> 825.00 € | J3: =SUMPRODUCT((Tableau1[Client]=Tableau2[[#This Row],[Clients]])*(Tableau1[Oppération]=Résultat!J2)*(Tableau1[Surface])) -> 0.00 ha | K3: =IF(K$2>0,((SUMPRODUCT((Tableau1[Client]=$A3)*(Tableau1[Oppération]=Résultat!K$2)*(Tableau1[Surface])))*VLOOKUP(K$2,Tableau6[],2,0))," ") -> 0 | L3: 000.00 | M3: =IF(M$2>0,((SUMPRODUCT((Tableau1[Client]=$A3)*(Tableau1[Oppération]=Résultat!M$2)*(Tableau1[Surface])))*VLOOKUP(M$2,Tableau6[],2,0))," ") ->  | N3: =SUMPRODUCT((Tableau1[Client]=Tableau2[[#This Row],[Clients]])*(Tableau1[Oppération]=Résultat!N2)*(Tableau1[Surface])) -> 0.00 ha | O3: =IF(O$2>0,((SUMPRODUCT((Tableau1[Client]=$A3)*(Tableau1[Oppération]=Résultat!O$2)*(Tableau1[Surface])))*VLOOKUP(O$2,Tableau6[],2,0))," ") -> 
A4: =Base!AD3 -> Florian | B4: =SUMPRODUCT((Tableau1[Client]=Tableau2[[#This Row],[Clients]])*(Tableau1[Oppération]=Résultat!$B$2)*(Tableau1[Surface])) -> 16.70 ha | C4: =IF(C$2>0,((SUMPRODUCT((Tableau1[Client]=$A4)*(Tableau1[Oppération]=Résultat!C$2)*(Tableau1[Surface])))*VLOOKUP(C$2,Tableau6[],2,0))," ") -> 1,503.00 € | D4: =SUMPRODUCT((Tableau1[Client]=Tableau2[[#This Row],[Clients]])*(Tableau1[Oppération]=Résultat!$D$2)*(Tableau1[Surface])) -> 105.50 ha | E4: =IF(E$2>0,((SUMPRODUCT((Tableau1[Client]=$A4)*(Tableau1[Oppération]=Résultat!E$2)*(Tableau1[Surface])))*VLOOKUP(E$2,Tableau6[],2,0))," ") -> 1,582.50 € | F4: =SUMPRODUCT((Tableau1[Client]=Tableau2[[#This Row],[Clients]])*(Tableau1[Oppération]=Résultat!$F$2)*(Tableau1[Surface])) -> 62.85 ha | G4: =IF(G$2>0,((SUMPRODUCT((Tableau1[Client]=$A4)*(Tableau1[Oppération]=Résultat!G$2)*(Tableau1[Surface])))*VLOOKUP(G$2,Tableau6[],2,0))," ") -> 5,719.35 € | H4: =SUMPRODUCT((Tableau1[Client]=Tableau2[[#This Row],[Clients]])*(Tableau1[Oppération]=Résultat!$H$2)*(Tableau1[Surface])) -> 0.00 ha | I4: =IF(I$2>0,((SUMPRODUCT((Tableau1[Client]=$A4)*(Tableau1[Oppération]=Résultat!I$2)*(Tableau1[Surface])))*VLOOKUP(I$2,Tableau6[],2,0))," ") -> 0 | J4: =SUMPRODUCT((Tableau1[Client]=Tableau2[[#This Row],[Clients]])*(Tableau1[Oppération]=Résultat!J3)*(Tableau1[Surface])) -> 0.00 ha | K4: =IF(K$2>0,((SUMPRODUCT((Tableau1[Client]=$A4)*(Tableau1[Oppération]=Résultat!K$2)*(Tableau1[Surface])))*VLOOKUP(K$2,Tableau6[],2,0))," ") -> 0 | L4: 000.00 | M4: =IF(M$2>0,((SUMPRODUCT((Tableau1[Client]=$A4)*(Tableau1[Oppération]=Résultat!M$2)*(Tableau1[Surface])))*VLOOKUP(M$2,Tableau6[],2,0))," ") ->  | N4: =SUMPRODUCT((Tableau1[Client]=Tableau2[[#This Row],[Clients]])*(Tableau1[Oppération]=Résultat!N3)*(Tableau1[Surface])) -> 0.00 ha | O4: =IF(O$2>0,((SUMPRODUCT((Tableau1[Client]=$A4)*(Tableau1[Oppération]=Résultat!O$2)*(Tableau1[Surface])))*VLOOKUP(O$2,Tableau6[],2,0))," ") -> 
A5: =Base!AD4 -> Moi | B5: =SUMPRODUCT((Tableau1[Client]=Tableau2[[#This Row],[Clients]])*(Tableau1[Oppération]=Résultat!$B$2)*(Tableau1[Surface])) -> 0.00 ha | C5: =IF(C$2>0,((SUMPRODUCT((Tableau1[Client]=$A5)*(Tableau1[Oppération]=Résultat!C$2)*(Tableau1[Surface])))*VLOOKUP(C$2,Tableau6[],2,0))," ") -> 0 | D5: =SUMPRODUCT((Tableau1[Client]=Tableau2[[#This Row],[Clients]])*(Tableau1[Oppération]=Résultat!$D$2)*(Tableau1[Surface])) -> 0.00 ha | E5: =IF(E$2>0,((SUMPRODUCT((Tableau1[Client]=$A5)*(Tableau1[Oppération]=Résultat!E$2)*(Tableau1[Surface])))*VLOOKUP(E$2,Tableau6[],2,0))," ") -> 0 | F5: =SUMPRODUCT((Tableau1[Client]=Tableau2[[#This Row],[Clients]])*(Tableau1[Oppération]=Résultat!$F$2)*(Tableau1[Surface])) -> 0.00 ha | G5: =IF(G$2>0,((SUMPRODUCT((Tableau1[Client]=$A5)*(Tableau1[Oppération]=Résultat!G$2)*(Tableau1[Surface])))*VLOOKUP(G$2,Tableau6[],2,0))," ") -> 0 | H5: =SUMPRODUCT((Tableau1[Client]=Tableau2[[#This Row],[Clients]])*(Tableau1[Oppération]=Résultat!$H$2)*(Tableau1[Surface])) -> 0.00 ha | I5: =IF(I$2>0,((SUMPRODUCT((Tableau1[Client]=$A5)*(Tableau1[Oppération]=Résultat!I$2)*(Tableau1[Surface])))*VLOOKUP(I$2,Tableau6[],2,0))," ") -> 0 | J5: =SUMPRODUCT((Tableau1[Client]=Tableau2[[#This Row],[Clients]])*(Tableau1[Oppération]=Résultat!J4)*(Tableau1[Surface])) -> 0.00 ha | K5: =IF(K$2>0,((SUMPRODUCT((Tableau1[Client]=$A5)*(Tableau1[Oppération]=Résultat!K$2)*(Tableau1[Surface])))*VLOOKUP(K$2,Tableau6[],2,0))," ") -> 0 | L5: 000.00 | M5: =IF(M$2>0,((SUMPRODUCT((Tableau1[Client]=$A5)*(Tableau1[Oppération]=Résultat!M$2)*(Tableau1[Surface])))*VLOOKUP(M$2,Tableau6[],2,0))," ") ->  | N5: =SUMPRODUCT((Tableau1[Client]=Tableau2[[#This Row],[Clients]])*(Tableau1[Oppération]=Résultat!N4)*(Tableau1[Surface])) -> 0.00 ha | O5: =IF(O$2>0,((SUMPRODUCT((Tableau1[Client]=$A5)*(Tableau1[Oppération]=Résultat!O$2)*(Tableau1[Surface])))*VLOOKUP(O$2,Tableau6[],2,0))," ") -> 
A6: =Base!AD5 -> Tisse | B6: =SUMPRODUCT((Tableau1[Client]=Tableau2[[#This Row],[Clients]])*(Tableau1[Oppération]=Résultat!$B$2)*(Tableau1[Surface])) -> 0.00 ha | C6: =IF(C$2>0,((SUMPRODUCT((Tableau1[Client]=$A6)*(Tableau1[Oppération]=Résultat!C$2)*(Tableau1[Surface])))*VLOOKUP(C$2,Tableau6[],2,0))," ") -> 0 | D6: =SUMPRODUCT((Tableau1[Client]=Tableau2[[#This Row],[Clients]])*(Tableau1[Oppération]=Résultat!$D$2)*(Tableau1[Surface])) -> 0.00 ha | E6: =IF(E$2>0,((SUMPRODUCT((Tableau1[Client]=$A6)*(Tableau1[Oppération]=Résultat!E$2)*(Tableau1[Surface])))*VLOOKUP(E$2,Tableau6[],2,0))," ") -> 0 | F6: =SUMPRODUCT((Tableau1[Client]=Tableau2[[#This Row],[Clients]])*(Tableau1[Oppération]=Résultat!$F$2)*(Tableau1[Surface])) -> 0.00 ha | G6: =IF(G$2>0,((SUMPRODUCT((Tableau1[Client]=$A6)*(Tableau1[Oppération]=Résultat!G$2)*(Tableau1[Surface])))*VLOOKUP(G$2,Tableau6[],2,0))," ") -> 0 | H6: =SUMPRODUCT((Tableau1[Client]=Tableau2[[#This Row],[Clients]])*(Tableau1[Oppération]=Résultat!$H$2)*(Tableau1[Surface])) -> 0.00 ha | I6: =IF(I$2>0,((SUMPRODUCT((Tableau1[Client]=$A6)*(Tableau1[Oppération]=Résultat!I$2)*(Tableau1[Surface])))*VLOOKUP(I$2,Tableau6[],2,0))," ") -> 0 | J6: =SUMPRODUCT((Tableau1[Client]=Tableau2[[#This Row],[Clients]])*(Tableau1[Oppération]=Résultat!J5)*(Tableau1[Surface])) -> 0.00 ha | K6: =IF(K$2>0,((SUMPRODUCT((Tableau1[Client]=$A6)*(Tableau1[Oppération]=Résultat!K$2)*(Tableau1[Surface])))*VLOOKUP(K$2,Tableau6[],2,0))," ") -> 0 | L6: 000.00 | M6: =IF(M$2>0,((SUMPRODUCT((Tableau1[Client]=$A6)*(Tableau1[Oppération]=Résultat!M$2)*(Tableau1[Surface])))*VLOOKUP(M$2,Tableau6[],2,0))," ") ->  | N6: =SUMPRODUCT((Tableau1[Client]=Tableau2[[#This Row],[Clients]])*(Tableau1[Oppération]=Résultat!N5)*(Tableau1[Surface])) -> 0.00 ha | O6: =IF(O$2>0,((SUMPRODUCT((Tableau1[Client]=$A6)*(Tableau1[Oppération]=Résultat!O$2)*(Tableau1[Surface])))*VLOOKUP(O$2,Tableau6[],2,0))," ") -> 
A7: =Base!AD6 ->  | B7: =SUMPRODUCT((Tableau1[Client]=Tableau2[[#This Row],[Clients]])*(Tableau1[Oppération]=Résultat!$B$2)*(Tableau1[Surface])) -> 0.00 ha | C7: =IF(C$2>0,((SUMPRODUCT((Tableau1[Client]=$A7)*(Tableau1[Oppération]=Résultat!C$2)*(Tableau1[Surface])))*VLOOKUP(C$2,Tableau6[],2,0))," ") -> 0 | D7: =SUMPRODUCT((Tableau1[Client]=Tableau2[[#This Row],[Clients]])*(Tableau1[Oppération]=Résultat!$D$2)*(Tableau1[Surface])) -> 0.00 ha | E7: =IF(E$2>0,((SUMPRODUCT((Tableau1[Client]=$A7)*(Tableau1[Oppération]=Résultat!E$2)*(Tableau1[Surface])))*VLOOKUP(E$2,Tableau6[],2,0))," ") -> 0 | F7: =SUMPRODUCT((Tableau1[Client]=Tableau2[[#This Row],[Clients]])*(Tableau1[Oppération]=Résultat!$F$2)*(Tableau1[Surface])) -> 0.00 ha | G7: =IF(G$2>0,((SUMPRODUCT((Tableau1[Client]=$A7)*(Tableau1[Oppération]=Résultat!G$2)*(Tableau1[Surface])))*VLOOKUP(G$2,Tableau6[],2,0))," ") -> 0 | H7: =SUMPRODUCT((Tableau1[Client]=Tableau2[[#This Row],[Clients]])*(Tableau1[Oppération]=Résultat!$H$2)*(Tableau1[Surface])) -> 0.00 ha | I7: =IF(I$2>0,((SUMPRODUCT((Tableau1[Client]=$A7)*(Tableau1[Oppération]=Résultat!I$2)*(Tableau1[Surface])))*VLOOKUP(I$2,Tableau6[],2,0))," ") -> 0 | J7: =SUMPRODUCT((Tableau1[Client]=Tableau2[[#This Row],[Clients]])*(Tableau1[Oppération]=Résultat!J6)*(Tableau1[Surface])) -> 0.00 ha | K7: =IF(K$2>0,((SUMPRODUCT((Tableau1[Client]=$A7)*(Tableau1[Oppération]=Résultat!K$2)*(Tableau1[Surface])))*VLOOKUP(K$2,Tableau6[],2,0))," ") -> 0 | L7: 000.00 | M7: =IF(M$2>0,((SUMPRODUCT((Tableau1[Client]=$A7)*(Tableau1[Oppération]=Résultat!M$2)*(Tableau1[Surface])))*VLOOKUP(M$2,Tableau6[],2,0))," ") ->  | N7: =SUMPRODUCT((Tableau1[Client]=Tableau2[[#This Row],[Clients]])*(Tableau1[Oppération]=Résultat!N6)*(Tableau1[Surface])) -> 0.00 ha | O7: =IF(O$2>0,((SUMPRODUCT((Tableau1[Client]=$A7)*(Tableau1[Oppération]=Résultat!O$2)*(Tableau1[Surface])))*VLOOKUP(O$2,Tableau6[],2,0))," ") -> 
A8: =Base!AD7 -> 0 | B8: =SUMPRODUCT((Tableau1[Client]=Tableau2[[#This Row],[Clients]])*(Tableau1[Oppération]=Résultat!$B$2)*(Tableau1[Surface])) -> 0.00 ha | C8: =IF(C$2>0,((SUMPRODUCT((Tableau1[Client]=$A8)*(Tableau1[Oppération]=Résultat!C$2)*(Tableau1[Surface])))*VLOOKUP(C$2,Tableau6[],2,0))," ") -> 0 | D8: =SUMPRODUCT((Tableau1[Client]=Tableau2[[#This Row],[Clients]])*(Tableau1[Oppération]=Résultat!$D$2)*(Tableau1[Surface])) -> 0.00 ha | E8: =IF(E$2>0,((SUMPRODUCT((Tableau1[Client]=$A8)*(Tableau1[Oppération]=Résultat!E$2)*(Tableau1[Surface])))*VLOOKUP(E$2,Tableau6[],2,0))," ") -> 0 | F8: =SUMPRODUCT((Tableau1[Client]=Tableau2[[#This Row],[Clients]])*(Tableau1[Oppération]=Résultat!$F$2)*(Tableau1[Surface])) -> 0.00 ha | G8: =IF(G$2>0,((SUMPRODUCT((Tableau1[Client]=$A8)*(Tableau1[Oppération]=Résultat!G$2)*(Tableau1[Surface])))*VLOOKUP(G$2,Tableau6[],2,0))," ") -> 0 | H8: =SUMPRODUCT((Tableau1[Client]=Tableau2[[#This Row],[Clients]])*(Tableau1[Oppération]=Résultat!$H$2)*(Tableau1[Surface])) -> 0.00 ha | I8: =IF(I$2>0,((SUMPRODUCT((Tableau1[Client]=$A8)*(Tableau1[Oppération]=Résultat!I$2)*(Tableau1[Surface])))*VLOOKUP(I$2,Tableau6[],2,0))," ") -> 0 | J8: =SUMPRODUCT((Tableau1[Client]=Tableau2[[#This Row],[Clients]])*(Tableau1[Oppération]=Résultat!J7)*(Tableau1[Surface])) -> 0.00 ha | K8: =IF(K$2>0,((SUMPRODUCT((Tableau1[Client]=$A8)*(Tableau1[Oppération]=Résultat!K$2)*(Tableau1[Surface])))*VLOOKUP(K$2,Tableau6[],2,0))," ") -> 0 | L8: 000.00 | M8: =IF(M$2>0,((SUMPRODUCT((Tableau1[Client]=$A8)*(Tableau1[Oppération]=Résultat!M$2)*(Tableau1[Surface])))*VLOOKUP(M$2,Tableau6[],2,0))," ") ->  | N8: =SUMPRODUCT((Tableau1[Client]=Tableau2[[#This Row],[Clients]])*(Tableau1[Oppération]=Résultat!N7)*(Tableau1[Surface])) -> 0.00 ha | O8: =IF(O$2>0,((SUMPRODUCT((Tableau1[Client]=$A8)*(Tableau1[Oppération]=Résultat!O$2)*(Tableau1[Surface])))*VLOOKUP(O$2,Tableau6[],2,0))," ") -> 
A9: =Base!AD8 -> 0 | B9: =SUMPRODUCT((Tableau1[Client]=Tableau2[[#This Row],[Clients]])*(Tableau1[Oppération]=Résultat!$B$2)*(Tableau1[Surface])) -> 0.00 ha | C9: =IF(C$2>0,((SUMPRODUCT((Tableau1[Client]=$A9)*(Tableau1[Oppération]=Résultat!C$2)*(Tableau1[Surface])))*VLOOKUP(C$2,Tableau6[],2,0))," ") -> 0 | D9: =SUMPRODUCT((Tableau1[Client]=Tableau2[[#This Row],[Clients]])*(Tableau1[Oppération]=Résultat!$D$2)*(Tableau1[Surface])) -> 0.00 ha | E9: =IF(E$2>0,((SUMPRODUCT((Tableau1[Client]=$A9)*(Tableau1[Oppération]=Résultat!E$2)*(Tableau1[Surface])))*VLOOKUP(E$2,Tableau6[],2,0))," ") -> 0 | F9: =SUMPRODUCT((Tableau1[Client]=Tableau2[[#This Row],[Clients]])*(Tableau1[Oppération]=Résultat!$F$2)*(Tableau1[Surface])) -> 0.00 ha | G9: =IF(G$2>0,((SUMPRODUCT((Tableau1[Client]=$A9)*(Tableau1[Oppération]=Résultat!G$2)*(Tableau1[Surface])))*VLOOKUP(G$2,Tableau6[],2,0))," ") -> 0 | H9: =SUMPRODUCT((Tableau1[Client]=Tableau2[[#This Row],[Clients]])*(Tableau1[Oppération]=Résultat!$H$2)*(Tableau1[Surface])) -> 0.00 ha | I9: =IF(I$2>0,((SUMPRODUCT((Tableau1[Client]=$A9)*(Tableau1[Oppération]=Résultat!I$2)*(Tableau1[Surface])))*VLOOKUP(I$2,Tableau6[],2,0))," ") -> 0 | J9: =SUMPRODUCT((Tableau1[Client]=Tableau2[[#This Row],[Clients]])*(Tableau1[Oppération]=Résultat!J8)*(Tableau1[Surface])) -> 0.00 ha | K9: =IF(K$2>0,((SUMPRODUCT((Tableau1[Client]=$A9)*(Tableau1[Oppération]=Résultat!K$2)*(Tableau1[Surface])))*VLOOKUP(K$2,Tableau6[],2,0))," ") -> 0 | L9: 000.00 | M9: =IF(M$2>0,((SUMPRODUCT((Tableau1[Client]=$A9)*(Tableau1[Oppération]=Résultat!M$2)*(Tableau1[Surface])))*VLOOKUP(M$2,Tableau6[],2,0))," ") ->  | N9: =SUMPRODUCT((Tableau1[Client]=Tableau2[[#This Row],[Clients]])*(Tableau1[Oppération]=Résultat!N8)*(Tableau1[Surface])) -> 0.00 ha | O9: =IF(O$2>0,((SUMPRODUCT((Tableau1[Client]=$A9)*(Tableau1[Oppération]=Résultat!O$2)*(Tableau1[Surface])))*VLOOKUP(O$2,Tableau6[],2,0))," ") -> 
A10: =Base!AD9 -> 0 | B10: =SUMPRODUCT((Tableau1[Client]=Tableau2[[#This Row],[Clients]])*(Tableau1[Oppération]=Résultat!$B$2)*(Tableau1[Surface])) -> 0.00 ha | C10: =IF(C$2>0,((SUMPRODUCT((Tableau1[Client]=$A10)*(Tableau1[Oppération]=Résultat!C$2)*(Tableau1[Surface])))*VLOOKUP(C$2,Tableau6[],2,0))," ") -> 0 | D10: =SUMPRODUCT((Tableau1[Client]=Tableau2[[#This Row],[Clients]])*(Tableau1[Oppération]=Résultat!$D$2)*(Tableau1[Surface])) -> 0.00 ha | E10: =IF(E$2>0,((SUMPRODUCT((Tableau1[Client]=$A10)*(Tableau1[Oppération]=Résultat!E$2)*(Tableau1[Surface])))*VLOOKUP(E$2,Tableau6[],2,0))," ") -> 0 | F10: =SUMPRODUCT((Tableau1[Client]=Tableau2[[#This Row],[Clients]])*(Tableau1[Oppération]=Résultat!$F$2)*(Tableau1[Surface])) -> 0.00 ha | G10: =IF(G$2>0,((SUMPRODUCT((Tableau1[Client]=$A10)*(Tableau1[Oppération]=Résultat!G$2)*(Tableau1[Surface])))*VLOOKUP(G$2,Tableau6[],2,0))," ") -> 0 | H10: =SUMPRODUCT((Tableau1[Client]=Tableau2[[#This Row],[Clients]])*(Tableau1[Oppération]=Résultat!$H$2)*(Tableau1[Surface])) -> 0.00 ha | I10: =IF(I$2>0,((SUMPRODUCT((Tableau1[Client]=$A10)*(Tableau1[Oppération]=Résultat!I$2)*(Tableau1[Surface])))*VLOOKUP(I$2,Tableau6[],2,0))," ") -> 0 | J10: =SUMPRODUCT((Tableau1[Client]=Tableau2[[#This Row],[Clients]])*(Tableau1[Oppération]=Résultat!J9)*(Tableau1[Surface])) -> 0.00 ha | K10: =IF(K$2>0,((SUMPRODUCT((Tableau1[Client]=$A10)*(Tableau1[Oppération]=Résultat!K$2)*(Tableau1[Surface])))*VLOOKUP(K$2,Tableau6[],2,0))," ") -> 0 | L10: 000.00 | M10: =IF(M$2>0,((SUMPRODUCT((Tableau1[Client]=$A10)*(Tableau1[Oppération]=Résultat!M$2)*(Tableau1[Surface])))*VLOOKUP(M$2,Tableau6[],2,0))," ") ->  | N10: =SUMPRODUCT((Tableau1[Client]=Tableau2[[#This Row],[Clients]])*(Tableau1[Oppération]=Résultat!N9)*(Tableau1[Surface])) -> 0.00 ha | O10: =IF(O$2>0,((SUMPRODUCT((Tableau1[Client]=$A10)*(Tableau1[Oppération]=Résultat!O$2)*(Tableau1[Surface])))*VLOOKUP(O$2,Tableau6[],2,0))," ") -> 
A11: =Base!AD10 -> 0 | B11: =SUMPRODUCT((Tableau1[Client]=Tableau2[[#This Row],[Clients]])*(Tableau1[Oppération]=Résultat!$B$2)*(Tableau1[Surface])) -> 0.00 ha | C11: =IF(C$2>0,((SUMPRODUCT((Tableau1[Client]=$A11)*(Tableau1[Oppération]=Résultat!C$2)*(Tableau1[Surface])))*VLOOKUP(C$2,Tableau6[],2,0))," ") -> 0 | D11: =SUMPRODUCT((Tableau1[Client]=Tableau2[[#This Row],[Clients]])*(Tableau1[Oppération]=Résultat!$D$2)*(Tableau1[Surface])) -> 0.00 ha | E11: =IF(E$2>0,((SUMPRODUCT((Tableau1[Client]=$A11)*(Tableau1[Oppération]=Résultat!E$2)*(Tableau1[Surface])))*VLOOKUP(E$2,Tableau6[],2,0))," ") -> 0 | F11: =SUMPRODUCT((Tableau1[Client]=Tableau2[[#This Row],[Clients]])*(Tableau1[Oppération]=Résultat!$F$2)*(Tableau1[Surface])) -> 0.00 ha | G11: =IF(G$2>0,((SUMPRODUCT((Tableau1[Client]=$A11)*(Tableau1[Oppération]=Résultat!G$2)*(Tableau1[Surface])))*VLOOKUP(G$2,Tableau6[],2,0))," ") -> 0 | H11: =SUMPRODUCT((Tableau1[Client]=Tableau2[[#This Row],[Clients]])*(Tableau1[Oppération]=Résultat!$H$2)*(Tableau1[Surface])) -> 0.00 ha | I11: =IF(I$2>0,((SUMPRODUCT((Tableau1[Client]=$A11)*(Tableau1[Oppération]=Résultat!I$2)*(Tableau1[Surface])))*VLOOKUP(I$2,Tableau6[],2,0))," ") -> 0 | J11: =SUMPRODUCT((Tableau1[Client]=Tableau2[[#This Row],[Clients]])*(Tableau1[Oppération]=Résultat!J10)*(Tableau1[Surface])) -> 0.00 ha | K11: =IF(K$2>0,((SUMPRODUCT((Tableau1[Client]=$A11)*(Tableau1[Oppération]=Résultat!K$2)*(Tableau1[Surface])))*VLOOKUP(K$2,Tableau6[],2,0))," ") -> 0 | L11: 001.00 | M11: =IF(M$2>0,((SUMPRODUCT((Tableau1[Client]=$A11)*(Tableau1[Oppération]=Résultat!M$2)*(Tableau1[Surface])))*VLOOKUP(M$2,Tableau6[],2,0))," ") ->  | N11: =SUMPRODUCT((Tableau1[Client]=Tableau2[[#This Row],[Clients]])*(Tableau1[Oppération]=Résultat!N10)*(Tableau1[Surface])) -> 0.00 ha
A12: =Base!AD11 -> 0 | B12: =SUMPRODUCT((Tableau1[Client]=Tableau2[[#This Row],[Clients]])*(Tableau1[Oppération]=Résultat!$B$2)*(Tableau1[Surface])) -> 0.00 ha | C12: =IF(C$2>0,((SUMPRODUCT((Tableau1[Client]=$A12)*(Tableau1[Oppération]=Résultat!C$2)*(Tableau1[Surface])))*VLOOKUP(C$2,Tableau6[],2,0))," ") -> 0 | D12: =SUMPRODUCT((Tableau1[Client]=Tableau2[[#This Row],[Clients]])*(Tableau1[Oppération]=Résultat!$D$2)*(Tableau1[Surface])) -> 0.00 ha | E12: =IF(E$2>0,((SUMPRODUCT((Tableau1[Client]=$A12)*(Tableau1[Oppération]=Résultat!E$2)*(Tableau1[Surface])))*VLOOKUP(E$2,Tableau6[],2,0))," ") -> 0 | F12: =SUMPRODUCT((Tableau1[Client]=Tableau2[[#This Row],[Clients]])*(Tableau1[Oppération]=Résultat!$F$2)*(Tableau1[Surface])) -> 0.00 ha | G12: =IF(G$2>0,((SUMPRODUCT((Tableau1[Client]=$A12)*(Tableau1[Oppération]=Résultat!G$2)*(Tableau1[Surface])))*VLOOKUP(G$2,Tableau6[],2,0))," ") -> 0 | H12: =SUMPRODUCT((Tableau1[Client]=Tableau2[[#This Row],[Clients]])*(Tableau1[Oppération]=Résultat!$H$2)*(Tableau1[Surface])) -> 0.00 ha | I12: =IF(I$2>0,((SUMPRODUCT((Tableau1[Client]=$A12)*(Tableau1[Oppération]=Résultat!I$2)*(Tableau1[Surface])))*VLOOKUP(I$2,Tableau6[],2,0))," ") -> 0 | J12: =SUMPRODUCT((Tableau1[Client]=Tableau2[[#This Row],[Clients]])*(Tableau1[Oppération]=Résultat!J11)*(Tableau1[Surface])) -> 0.00 ha | K12: =IF(K$2>0,((SUMPRODUCT((Tableau1[Client]=$A12)*(Tableau1[Oppération]=Résultat!K$2)*(Tableau1[Surface])))*VLOOKUP(K$2,Tableau6[],2,0))," ") -> 0 | L12: 002.00 | M12: =IF(M$2>0,((SUMPRODUCT((Tableau1[Client]=$A12)*(Tableau1[Oppération]=Résultat!M$2)*(Tableau1[Surface])))*VLOOKUP(M$2,Tableau6[],2,0))," ") ->  | N12: =SUMPRODUCT((Tableau1[Client]=Tableau2[[#This Row],[Clients]])*(Tableau1[Oppération]=Résultat!N11)*(Tableau1[Surface])) -> 0.00 ha
A13: =Base!AD12 -> 0 | B13: =SUMPRODUCT((Tableau1[Client]=Tableau2[[#This Row],[Clients]])*(Tableau1[Oppération]=Résultat!$B$2)*(Tableau1[Surface])) -> 0.00 ha | C13: =IF(C$2>0,((SUMPRODUCT((Tableau1[Client]=$A13)*(Tableau1[Oppération]=Résultat!C$2)*(Tableau1[Surface])))*VLOOKUP(C$2,Tableau6[],2,0))," ") -> 0 | D13: =SUMPRODUCT((Tableau1[Client]=Tableau2[[#This Row],[Clients]])*(Tableau1[Oppération]=Résultat!$D$2)*(Tableau1[Surface])) -> 0.00 ha | E13: =IF(E$2>0,((SUMPRODUCT((Tableau1[Client]=$A13)*(Tableau1[Oppération]=Résultat!E$2)*(Tableau1[Surface])))*VLOOKUP(E$2,Tableau6[],2,0))," ") -> 0 | F13: =SUMPRODUCT((Tableau1[Client]=Tableau2[[#This Row],[Clients]])*(Tableau1[Oppération]=Résultat!$F$2)*(Tableau1[Surface])) -> 0.00 ha | G13: =IF(G$2>0,((SUMPRODUCT((Tableau1[Client]=$A13)*(Tableau1[Oppération]=Résultat!G$2)*(Tableau1[Surface])))*VLOOKUP(G$2,Tableau6[],2,0))," ") -> 0 | H13: =SUMPRODUCT((Tableau1[Client]=Tableau2[[#This Row],[Clients]])*(Tableau1[Oppération]=Résultat!$H$2)*(Tableau1[Surface])) -> 0.00 ha | I13: =IF(I$2>0,((SUMPRODUCT((Tableau1[Client]=$A13)*(Tableau1[Oppération]=Résultat!I$2)*(Tableau1[Surface])))*VLOOKUP(I$2,Tableau6[],2,0))," ") -> 0 | J13: =SUMPRODUCT((Tableau1[Client]=Tableau2[[#This Row],[Clients]])*(Tableau1[Oppération]=Résultat!J12)*(Tableau1[Surface])) -> 0.00 ha | K13: =IF(K$2>0,((SUMPRODUCT((Tableau1[Client]=$A13)*(Tableau1[Oppération]=Résultat!K$2)*(Tableau1[Surface])))*VLOOKUP(K$2,Tableau6[],2,0))," ") -> 0 | L13: 003.00 | M13: =IF(M$2>0,((SUMPRODUCT((Tableau1[Client]=$A13)*(Tableau1[Oppération]=Résultat!M$2)*(Tableau1[Surface])))*VLOOKUP(M$2,Tableau6[],2,0))," ") ->  | N13: =SUMPRODUCT((Tableau1[Client]=Tableau2[[#This Row],[Clients]])*(Tableau1[Oppération]=Résultat!N12)*(Tableau1[Surface])) -> 0.00 ha
A14: =Base!AD13 -> 0 | B14: =SUMPRODUCT((Tableau1[Client]=Tableau2[[#This Row],[Clients]])*(Tableau1[Oppération]=Résultat!$B$2)*(Tableau1[Surface])) -> 0.00 ha | C14: =IF(C$2>0,((SUMPRODUCT((Tableau1[Client]=$A14)*(Tableau1[Oppération]=Résultat!C$2)*(Tableau1[Surface])))*VLOOKUP(C$2,Tableau6[],2,0))," ") -> 0 | D14: =SUMPRODUCT((Tableau1[Client]=Tableau2[[#This Row],[Clients]])*(Tableau1[Oppération]=Résultat!$D$2)*(Tableau1[Surface])) -> 0.00 ha | E14: =IF(E$2>0,((SUMPRODUCT((Tableau1[Client]=$A14)*(Tableau1[Oppération]=Résultat!E$2)*(Tableau1[Surface])))*VLOOKUP(E$2,Tableau6[],2,0))," ") -> 0 | F14: =SUMPRODUCT((Tableau1[Client]=Tableau2[[#This Row],[Clients]])*(Tableau1[Oppération]=Résultat!$F$2)*(Tableau1[Surface])) -> 0.00 ha | G14: =IF(G$2>0,((SUMPRODUCT((Tableau1[Client]=$A14)*(Tableau1[Oppération]=Résultat!G$2)*(Tableau1[Surface])))*VLOOKUP(G$2,Tableau6[],2,0))," ") -> 0 | H14: =SUMPRODUCT((Tableau1[Client]=Tableau2[[#This Row],[Clients]])*(Tableau1[Oppération]=Résultat!$H$2)*(Tableau1[Surface])) -> 0.00 ha | I14: =IF(I$2>0,((SUMPRODUCT((Tableau1[Client]=$A14)*(Tableau1[Oppération]=Résultat!I$2)*(Tableau1[Surface])))*VLOOKUP(I$2,Tableau6[],2,0))," ") -> 0 | J14: =SUMPRODUCT((Tableau1[Client]=Tableau2[[#This Row],[Clients]])*(Tableau1[Oppération]=Résultat!J13)*(Tableau1[Surface])) -> 0.00 ha | K14: =IF(K$2>0,((SUMPRODUCT((Tableau1[Client]=$A14)*(Tableau1[Oppération]=Résultat!K$2)*(Tableau1[Surface])))*VLOOKUP(K$2,Tableau6[],2,0))," ") -> 0 | L14: 004.00 | M14: =IF(M$2>0,((SUMPRODUCT((Tableau1[Client]=$A14)*(Tableau1[Oppération]=Résultat!M$2)*(Tableau1[Surface])))*VLOOKUP(M$2,Tableau6[],2,0))," ") ->  | N14: =SUMPRODUCT((Tableau1[Client]=Tableau2[[#This Row],[Clients]])*(Tableau1[Oppération]=Résultat!N13)*(Tableau1[Surface])) -> 0.00 ha
A15: =Base!AD14 -> 0 | B15: =SUMPRODUCT((Tableau1[Client]=Tableau2[[#This Row],[Clients]])*(Tableau1[Oppération]=Résultat!$B$2)*(Tableau1[Surface])) -> 0.00 ha | C15: =IF(C$2>0,((SUMPRODUCT((Tableau1[Client]=$A15)*(Tableau1[Oppération]=Résultat!C$2)*(Tableau1[Surface])))*VLOOKUP(C$2,Tableau6[],2,0))," ") -> 0 | D15: =SUMPRODUCT((Tableau1[Client]=Tableau2[[#This Row],[Clients]])*(Tableau1[Oppération]=Résultat!$D$2)*(Tableau1[Surface])) -> 0.00 ha | E15: =IF(E$2>0,((SUMPRODUCT((Tableau1[Client]=$A15)*(Tableau1[Oppération]=Résultat!E$2)*(Tableau1[Surface])))*VLOOKUP(E$2,Tableau6[],2,0))," ") -> 0 | F15: =SUMPRODUCT((Tableau1[Client]=Tableau2[[#This Row],[Clients]])*(Tableau1[Oppération]=Résultat!$F$2)*(Tableau1[Surface])) -> 0.00 ha | G15: =IF(G$2>0,((SUMPRODUCT((Tableau1[Client]=$A15)*(Tableau1[Oppération]=Résultat!G$2)*(Tableau1[Surface])))*VLOOKUP(G$2,Tableau6[],2,0))," ") -> 0 | H15: =SUMPRODUCT((Tableau1[Client]=Tableau2[[#This Row],[Clients]])*(Tableau1[Oppération]=Résultat!$H$2)*(Tableau1[Surface])) -> 0.00 ha | I15: =IF(I$2>0,((SUMPRODUCT((Tableau1[Client]=$A15)*(Tableau1[Oppération]=Résultat!I$2)*(Tableau1[Surface])))*VLOOKUP(I$2,Tableau6[],2,0))," ") -> 0 | J15: =SUMPRODUCT((Tableau1[Client]=Tableau2[[#This Row],[Clients]])*(Tableau1[Oppération]=Résultat!J14)*(Tableau1[Surface])) -> 0.00 ha | K15: =IF(K$2>0,((SUMPRODUCT((Tableau1[Client]=$A15)*(Tableau1[Oppération]=Résultat!K$2)*(Tableau1[Surface])))*VLOOKUP(K$2,Tableau6[],2,0))," ") -> 0 | L15: 005.00 | M15: =IF(M$2>0,((SUMPRODUCT((Tableau1[Client]=$A15)*(Tableau1[Oppération]=Résultat!M$2)*(Tableau1[Surface])))*VLOOKUP(M$2,Tableau6[],2,0))," ") ->  | N15: =SUMPRODUCT((Tableau1[Client]=Tableau2[[#This Row],[Clients]])*(Tableau1[Oppération]=Résultat!N14)*(Tableau1[Surface])) -> 0.00 ha
A16: =Base!AD15 -> 0 | B16: =SUMPRODUCT((Tableau1[Client]=Tableau2[[#This Row],[Clients]])*(Tableau1[Oppération]=Résultat!$B$2)*(Tableau1[Surface])) -> 0.00 ha | C16: =IF(C$2>0,((SUMPRODUCT((Tableau1[Client]=$A16)*(Tableau1[Oppération]=Résultat!C$2)*(Tableau1[Surface])))*VLOOKUP(C$2,Tableau6[],2,0))," ") -> 0 | D16: =SUMPRODUCT((Tableau1[Client]=Tableau2[[#This Row],[Clients]])*(Tableau1[Oppération]=Résultat!$D$2)*(Tableau1[Surface])) -> 0.00 ha | E16: =IF(E$2>0,((SUMPRODUCT((Tableau1[Client]=$A16)*(Tableau1[Oppération]=Résultat!E$2)*(Tableau1[Surface])))*VLOOKUP(E$2,Tableau6[],2,0))," ") -> 0 | F16: =SUMPRODUCT((Tableau1[Client]=Tableau2[[#This Row],[Clients]])*(Tableau1[Oppération]=Résultat!$F$2)*(Tableau1[Surface])) -> 0.00 ha | G16: =IF(G$2>0,((SUMPRODUCT((Tableau1[Client]=$A16)*(Tableau1[Oppération]=Résultat!G$2)*(Tableau1[Surface])))*VLOOKUP(G$2,Tableau6[],2,0))," ") -> 0 | H16: =SUMPRODUCT((Tableau1[Client]=Tableau2[[#This Row],[Clients]])*(Tableau1[Oppération]=Résultat!$H$2)*(Tableau1[Surface])) -> 0.00 ha | I16: =IF(I$2>0,((SUMPRODUCT((Tableau1[Client]=$A16)*(Tableau1[Oppération]=Résultat!I$2)*(Tableau1[Surface])))*VLOOKUP(I$2,Tableau6[],2,0))," ") -> 0 | J16: =SUMPRODUCT((Tableau1[Client]=Tableau2[[#This Row],[Clients]])*(Tableau1[Oppération]=Résultat!J15)*(Tableau1[Surface])) -> 0.00 ha | K16: =IF(K$2>0,((SUMPRODUCT((Tableau1[Client]=$A16)*(Tableau1[Oppération]=Résultat!K$2)*(Tableau1[Surface])))*VLOOKUP(K$2,Tableau6[],2,0))," ") -> 0 | L16: 006.00 | M16: =IF(M$2>0,((SUMPRODUCT((Tableau1[Client]=$A16)*(Tableau1[Oppération]=Résultat!M$2)*(Tableau1[Surface])))*VLOOKUP(M$2,Tableau6[],2,0))," ") ->  | N16: =SUMPRODUCT((Tableau1[Client]=Tableau2[[#This Row],[Clients]])*(Tableau1[Oppération]=Résultat!N15)*(Tableau1[Surface])) -> 0.00 ha
A17: =Base!AD16 -> 0 | B17: =SUMPRODUCT((Tableau1[Client]=Tableau2[[#This Row],[Clients]])*(Tableau1[Oppération]=Résultat!$B$2)*(Tableau1[Surface])) -> 0.00 ha | C17: =IF(C$2>0,((SUMPRODUCT((Tableau1[Client]=$A17)*(Tableau1[Oppération]=Résultat!C$2)*(Tableau1[Surface])))*VLOOKUP(C$2,Tableau6[],2,0))," ") -> 0 | D17: =SUMPRODUCT((Tableau1[Client]=Tableau2[[#This Row],[Clients]])*(Tableau1[Oppération]=Résultat!$D$2)*(Tableau1[Surface])) -> 0.00 ha | E17: =IF(E$2>0,((SUMPRODUCT((Tableau1[Client]=$A17)*(Tableau1[Oppération]=Résultat!E$2)*(Tableau1[Surface])))*VLOOKUP(E$2,Tableau6[],2,0))," ") -> 0 | F17: =SUMPRODUCT((Tableau1[Client]=Tableau2[[#This Row],[Clients]])*(Tableau1[Oppération]=Résultat!$F$2)*(Tableau1[Surface])) -> 0.00 ha | G17: =IF(G$2>0,((SUMPRODUCT((Tableau1[Client]=$A17)*(Tableau1[Oppération]=Résultat!G$2)*(Tableau1[Surface])))*VLOOKUP(G$2,Tableau6[],2,0))," ") -> 0 | H17: =SUMPRODUCT((Tableau1[Client]=Tableau2[[#This Row],[Clients]])*(Tableau1[Oppération]=Résultat!$H$2)*(Tableau1[Surface])) -> 0.00 ha | I17: =IF(I$2>0,((SUMPRODUCT((Tableau1[Client]=$A17)*(Tableau1[Oppération]=Résultat!I$2)*(Tableau1[Surface])))*VLOOKUP(I$2,Tableau6[],2,0))," ") -> 0 | J17: =SUMPRODUCT((Tableau1[Client]=Tableau2[[#This Row],[Clients]])*(Tableau1[Oppération]=Résultat!J16)*(Tableau1[Surface])) -> 0.00 ha | K17: =IF(K$2>0,((SUMPRODUCT((Tableau1[Client]=$A17)*(Tableau1[Oppération]=Résultat!K$2)*(Tableau1[Surface])))*VLOOKUP(K$2,Tableau6[],2,0))," ") -> 0 | L17: 007.00 | M17: =IF(M$2>0,((SUMPRODUCT((Tableau1[Client]=$A17)*(Tableau1[Oppération]=Résultat!M$2)*(Tableau1[Surface])))*VLOOKUP(M$2,Tableau6[],2,0))," ") ->  | N17: =SUMPRODUCT((Tableau1[Client]=Tableau2[[#This Row],[Clients]])*(Tableau1[Oppération]=Résultat!N16)*(Tableau1[Surface])) -> 0.00 ha
A18: =Base!AD17 -> 0 | B18: =SUMPRODUCT((Tableau1[Client]=Tableau2[[#This Row],[Clients]])*(Tableau1[Oppération]=Résultat!$B$2)*(Tableau1[Surface])) -> 0.00 ha | C18: =IF(C$2>0,((SUMPRODUCT((Tableau1[Client]=$A18)*(Tableau1[Oppération]=Résultat!C$2)*(Tableau1[Surface])))*VLOOKUP(C$2,Tableau6[],2,0))," ") -> 0 | D18: =SUMPRODUCT((Tableau1[Client]=Tableau2[[#This Row],[Clients]])*(Tableau1[Oppération]=Résultat!$D$2)*(Tableau1[Surface])) -> 0.00 ha | E18: =IF(E$2>0,((SUMPRODUCT((Tableau1[Client]=$A18)*(Tableau1[Oppération]=Résultat!E$2)*(Tableau1[Surface])))*VLOOKUP(E$2,Tableau6[],2,0))," ") -> 0 | F18: =SUMPRODUCT((Tableau1[Client]=Tableau2[[#This Row],[Clients]])*(Tableau1[Oppération]=Résultat!$F$2)*(Tableau1[Surface])) -> 0.00 ha | G18: =IF(G$2>0,((SUMPRODUCT((Tableau1[Client]=$A18)*(Tableau1[Oppération]=Résultat!G$2)*(Tableau1[Surface])))*VLOOKUP(G$2,Tableau6[],2,0))," ") -> 0 | H18: =SUMPRODUCT((Tableau1[Client]=Tableau2[[#This Row],[Clients]])*(Tableau1[Oppération]=Résultat!$H$2)*(Tableau1[Surface])) -> 0.00 ha | I18: =IF(I$2>0,((SUMPRODUCT((Tableau1[Client]=$A18)*(Tableau1[Oppération]=Résultat!I$2)*(Tableau1[Surface])))*VLOOKUP(I$2,Tableau6[],2,0))," ") -> 0 | J18: =SUMPRODUCT((Tableau1[Client]=Tableau2[[#This Row],[Clients]])*(Tableau1[Oppération]=Résultat!J17)*(Tableau1[Surface])) -> 0.00 ha | K18: =IF(K$2>0,((SUMPRODUCT((Tableau1[Client]=$A18)*(Tableau1[Oppération]=Résultat!K$2)*(Tableau1[Surface])))*VLOOKUP(K$2,Tableau6[],2,0))," ") -> 0 | L18: 008.00 | M18: =IF(M$2>0,((SUMPRODUCT((Tableau1[Client]=$A18)*(Tableau1[Oppération]=Résultat!M$2)*(Tableau1[Surface])))*VLOOKUP(M$2,Tableau6[],2,0))," ") ->  | N18: =SUMPRODUCT((Tableau1[Client]=Tableau2[[#This Row],[Clients]])*(Tableau1[Oppération]=Résultat!N17)*(Tableau1[Surface])) -> 0.00 ha
A19: =Base!AD18 -> 0 | B19: =SUMPRODUCT((Tableau1[Client]=Tableau2[[#This Row],[Clients]])*(Tableau1[Oppération]=Résultat!$B$2)*(Tableau1[Surface])) -> 0.00 ha | C19: =IF(C$2>0,((SUMPRODUCT((Tableau1[Client]=$A19)*(Tableau1[Oppération]=Résultat!C$2)*(Tableau1[Surface])))*VLOOKUP(C$2,Tableau6[],2,0))," ") -> 0 | D19: =SUMPRODUCT((Tableau1[Client]=Tableau2[[#This Row],[Clients]])*(Tableau1[Oppération]=Résultat!$D$2)*(Tableau1[Surface])) -> 0.00 ha | E19: =IF(E$2>0,((SUMPRODUCT((Tableau1[Client]=$A19)*(Tableau1[Oppération]=Résultat!E$2)*(Tableau1[Surface])))*VLOOKUP(E$2,Tableau6[],2,0))," ") -> 0 | F19: =SUMPRODUCT((Tableau1[Client]=Tableau2[[#This Row],[Clients]])*(Tableau1[Oppération]=Résultat!$F$2)*(Tableau1[Surface])) -> 0.00 ha | G19: =IF(G$2>0,((SUMPRODUCT((Tableau1[Client]=$A19)*(Tableau1[Oppération]=Résultat!G$2)*(Tableau1[Surface])))*VLOOKUP(G$2,Tableau6[],2,0))," ") -> 0 | H19: =SUMPRODUCT((Tableau1[Client]=Tableau2[[#This Row],[Clients]])*(Tableau1[Oppération]=Résultat!$H$2)*(Tableau1[Surface])) -> 0.00 ha | I19: =IF(I$2>0,((SUMPRODUCT((Tableau1[Client]=$A19)*(Tableau1[Oppération]=Résultat!I$2)*(Tableau1[Surface])))*VLOOKUP(I$2,Tableau6[],2,0))," ") -> 0 | J19: =SUMPRODUCT((Tableau1[Client]=Tableau2[[#This Row],[Clients]])*(Tableau1[Oppération]=Résultat!J18)*(Tableau1[Surface])) -> 0.00 ha | K19: =IF(K$2>0,((SUMPRODUCT((Tableau1[Client]=$A19)*(Tableau1[Oppération]=Résultat!K$2)*(Tableau1[Surface])))*VLOOKUP(K$2,Tableau6[],2,0))," ") -> 0 | L19: 009.00 | M19: =IF(M$2>0,((SUMPRODUCT((Tableau1[Client]=$A19)*(Tableau1[Oppération]=Résultat!M$2)*(Tableau1[Surface])))*VLOOKUP(M$2,Tableau6[],2,0))," ") ->  | N19: =SUMPRODUCT((Tableau1[Client]=Tableau2[[#This Row],[Clients]])*(Tableau1[Oppération]=Résultat!N18)*(Tableau1[Surface])) -> 0.00 ha
A20: =Base!AD19 -> 0 | B20: =SUMPRODUCT((Tableau1[Client]=Tableau2[[#This Row],[Clients]])*(Tableau1[Oppération]=Résultat!$B$2)*(Tableau1[Surface])) -> 0.00 ha | C20: =IF(C$2>0,((SUMPRODUCT((Tableau1[Client]=$A20)*(Tableau1[Oppération]=Résultat!C$2)*(Tableau1[Surface])))*VLOOKUP(C$2,Tableau6[],2,0))," ") -> 0 | D20: =SUMPRODUCT((Tableau1[Client]=Tableau2[[#This Row],[Clients]])*(Tableau1[Oppération]=Résultat!$D$2)*(Tableau1[Surface])) -> 0.00 ha | E20: =IF(E$2>0,((SUMPRODUCT((Tableau1[Client]=$A20)*(Tableau1[Oppération]=Résultat!E$2)*(Tableau1[Surface])))*VLOOKUP(E$2,Tableau6[],2,0))," ") -> 0 | F20: =SUMPRODUCT((Tableau1[Client]=Tableau2[[#This Row],[Clients]])*(Tableau1[Oppération]=Résultat!$F$2)*(Tableau1[Surface])) -> 0.00 ha | G20: =IF(G$2>0,((SUMPRODUCT((Tableau1[Client]=$A20)*(Tableau1[Oppération]=Résultat!G$2)*(Tableau1[Surface])))*VLOOKUP(G$2,Tableau6[],2,0))," ") -> 0 | H20: =SUMPRODUCT((Tableau1[Client]=Tableau2[[#This Row],[Clients]])*(Tableau1[Oppération]=Résultat!$H$2)*(Tableau1[Surface])) -> 0.00 ha | I20: =IF(I$2>0,((SUMPRODUCT((Tableau1[Client]=$A20)*(Tableau1[Oppération]=Résultat!I$2)*(Tableau1[Surface])))*VLOOKUP(I$2,Tableau6[],2,0))," ") -> 0 | J20: =SUMPRODUCT((Tableau1[Client]=Tableau2[[#This Row],[Clients]])*(Tableau1[Oppération]=Résultat!J19)*(Tableau1[Surface])) -> 0.00 ha | K20: =IF(K$2>0,((SUMPRODUCT((Tableau1[Client]=$A20)*(Tableau1[Oppération]=Résultat!K$2)*(Tableau1[Surface])))*VLOOKUP(K$2,Tableau6[],2,0))," ") -> 0 | L20: 010.00 | M20: =IF(M$2>0,((SUMPRODUCT((Tableau1[Client]=$A20)*(Tableau1[Oppération]=Résultat!M$2)*(Tableau1[Surface])))*VLOOKUP(M$2,Tableau6[],2,0))," ") ->  | N20: =SUMPRODUCT((Tableau1[Client]=Tableau2[[#This Row],[Clients]])*(Tableau1[Oppération]=Résultat!N19)*(Tableau1[Surface])) -> 0.00 ha
B21: =SUBTOTAL(109,Tableau2[Colonne1]) -> 16.70 ha | C21: =SUBTOTAL(109,Tableau2[Colonne8]) -> 1,503.00 € | D21: =SUBTOTAL(109,Tableau2[Colonne3]) -> 121.35 ha | E21: =SUBTOTAL(109,Tableau2[Colonne9]) -> 1,820.25 € | F21: =SUBTOTAL(109,Tableau2[Colonne2]) -> 68.20 ha | G21: =SUBTOTAL(109,Tableau2[Colonne10]) -> 6,206.20 € | H21: =SUBTOTAL(109,Tableau2[Colonne4]) -> 55.00 ha | I21: =SUBTOTAL(109,Tableau2[Colonne11]) -> 825.00 € | J21: =SUBTOTAL(109,Tableau2[Colonne5]) -> 0.00 ha | K21: =SUBTOTAL(109,Tableau2[Colonne12]) -> 0 | L21: 000,00 | M21: =SUBTOTAL(109,Tableau2[Colonne13]) -> 0 | N21: =SUBTOTAL(109,Tableau2[Colonne7]) -> 0.00 ha | O21: =SUBTOTAL(109,Tableau2[Colonne14]) -> 0

Sheet Impression
A1: Albouy Jérome | P1: Durand Jérome | AA1: Culture | AB1: Surface
J2: Client | K2: Campagne | AA2: Blé | AB2: =IF(AA2>0,SUMIF($R$15:$R$30,AA2,$Q$15:$Q$30)," ") -> 5.35
J3: Florian | K3: 2013/2014 | AA3: Tournesol | AB3: 31.35
F4: Client | U4: Client | AA4: Maïs | AB4: 55
A5: Campagne | B5: =$K$3 -> 2013/2014 | F5: =VLOOKUP($J$3,Tableau3[],1,0) -> Florian | P5: Campagne | Q5: =$K$3 -> 2013/2014 | U5: =VLOOKUP($J$3,Tableau3[],1,0) -> Florian
F6: =VLOOKUP($J$3,Tableau3[],2,0) -> Le Bouscas | U6: =VLOOKUP($J$3,Tableau3[],2,0) -> Le Bouscas
F7: =VLOOKUP($J$3,Tableau3[],3,0) -> 81600 | G7: =VLOOKUP($J$3,Tableau3[],4,0) -> Cadalen | P7: Assolement | U7: =VLOOKUP($J$3,Tableau3[],3,0) -> 81600 | V7: =VLOOKUP($J$3,Tableau3[],4,0) -> Cadalen
AB9: =IF(AA9>0,SUMIF($R$15:$R$30,AA9,$Q$15:$Q$30)," ") -> 
A10: Date | B10: Oppération | C10: Parcelle | D10: Culture | E10: Surface | F10: Produit | G10: Observation | AB10: =IF(AA10>0,SUMIF($R$15:$R$30,AA10,$Q$15:$Q$30)," ") -> 
A11: 15/12/2014 | B11: Moisson | C11: Sous la route | D11: Blé | E11: 5.35 ha | F11: Urée 46% | AB11: =IF(AA11>0,SUMIF($R$15:$R$30,AA11,$Q$15:$Q$30)," ") -> 
A12: 16/12/2014 | B12: Pulvérisation | C12: La plaine | D12: Tournesol | E12: 20.50 ha
A13: 17/12/2014 | B13: Labour | C13: Coteau | D13: Tournesol | E13: 8.35 ha
A14: 15/12/2014 | B14: Moisson | C14: Devant la maison | D14: Tournesol | E14: 2.50 ha | F14: Axial | P14: Parcelles | Q14: Surface | R14: Culture
A15: 15/12/2014 | B15: Labour | C15: Coteau | D15: Tournesol | E15: 8.35 ha | P15: Coteau | Q15: =IF(P15>0,VLOOKUP(P15,Tableau7[[#All],[Parcelles]:[Campagne]],2,0)," ") -> 8.35 ha | R15: =IF(P15>0,VLOOKUP(P15,Tableau7[[#All],[Parcelles]:[Campagne]],3,0)," ") -> Tournesol
A16: 17/12/2014 | B16: Moisson | C16: sgdsfd | D16: Maïs | E16: 55.00 ha | F16: Urée 46% | P16: Devant la maison | Q16: =IF(P16>0,VLOOKUP(P16,Tableau7[[#All],[Parcelles]:[Campagne]],2,0)," ") -> 2.50 ha | R16: =IF(P16>0,VLOOKUP(P16,Tableau7[[#All],[Parcelles]:[Campagne]],3,0)," ") -> Tournesol
P17: La plaine | Q17: =IF(P17>0,VLOOKUP(P17,Tableau7[[#All],[Parcelles]:[Campagne]],2,0)," ") -> 20.50 ha | R17: =IF(P17>0,VLOOKUP(P17,Tableau7[[#All],[Parcelles]:[Campagne]],3,0)," ") -> Tournesol
P18: sgdsfd | Q18: =IF(P18>0,VLOOKUP(P18,Tableau7[[#All],[Parcelles]:[Campagne]],2,0)," ") -> 55.00 ha | R18: =IF(P18>0,VLOOKUP(P18,Tableau7[[#All],[Parcelles]:[Campagne]],3,0)," ") -> Maïs
H19: =IF(B19>0,(VLOOKUP(B19,Tableau6[],2,0))," ") ->  | P19: Sous la route | Q19: =IF(P19>0,VLOOKUP(P19,Tableau7[[#All],[Parcelles]:[Campagne]],2,0)," ") -> 5.35 ha | R19: =IF(P19>0,VLOOKUP(P19,Tableau7[[#All],[Parcelles]:[Campagne]],3,0)," ") -> Blé
H20: =IF(B20>0,(VLOOKUP(B20,Tableau6[],2,0))," ") ->  | Q20: =IF(P20>0,VLOOKUP(P20,Tableau7[[#All],[Parcelles]:[Campagne]],2,0)," ") ->  | R20: =IF(P20>0,VLOOKUP(P20,Tableau7[[#All],[Parcelles]:[Campagne]],3,0)," ") -> 
H21: =IF(B21>0,(VLOOKUP(B21,Tableau6[],2,0))," ") -> 
H22: =IF(B22>0,(VLOOKUP(B22,Tableau6[],2,0))," ") -> 
H23: =IF(B23>0,(VLOOKUP(B23,Tableau6[],2,0))," ") -> 
H24: =IF(B24>0,(VLOOKUP(B24,Tableau6[],2,0))," ") -> 
H25: =IF(B25>0,(VLOOKUP(B25,Tableau6[],2,0))," ") -> 
H26: =IF(B26>0,(VLOOKUP(B26,Tableau6[],2,0))," ") -> 
H27: =IF(B27>0,(VLOOKUP(B27,Tableau6[],2,0))," ") -> 
H28: =IF(B28>0,(VLOOKUP(B28,Tableau6[],2,0))," ") -> 
H29: =IF(B29>0,(VLOOKUP(B29,Tableau6[],2,0))," ") -> 
H30: =IF(B30>0,(VLOOKUP(B30,Tableau6[],2,0))," ") -> 
H31: =IF(B31>0,(VLOOKUP(B31,Tableau6[],2,0))," ") -> 
H32: =IF(B32>0,(VLOOKUP(B32,Tableau6[],2,0))," ") -> 
H33: =IF(B33>0,(VLOOKUP(B33,Tableau6[],2,0))," ") -> 
H34: =IF(B34>0,(VLOOKUP(B34,Tableau6[],2,0))," ") -> 
A35: Oppération | B35: Surface | C35: Prix / ha | D35: Cout
A36: Labour | B36: =IF(A36>0,SUMIF($B$11:$B$33,A36,$E$11:$E$33)," ") -> 16.70 ha | C36: =IF(A36>0,VLOOKUP(A36,Tableau6[],2,0)," ") -> 90.00 € | D36: =IF(A36>0,(B36*C36)," ") -> 1,503.00 €
A37: Moisson | B37: =IF(A37>0,SUMIF($B$11:$B$33,A37,$E$11:$E$33)," ") -> 62.85 ha | C37: =IF(A37>0,VLOOKUP(A37,Tableau6[],2,0)," ") -> 91.00 € | D37: =IF(A37>0,(B37*C37)," ") -> 5,719.35 €
A38: Pulvérisation | B38: 20.50 ha | C38: =IF(A38>0,VLOOKUP(A38,Tableau6[],2,0)," ") -> 15.00 € | D38: 307.50 €
C39: =IF(A39>0,VLOOKUP(A39,Tableau6[],2,0)," ") -> 
C40: =IF(A40>0,VLOOKUP(A40,Tableau6[],2,0)," ") -> 
C41: =IF(A41>0,VLOOKUP(A41,Tableau6[],2,0)," ") -> 
C42: =IF(A42>0,VLOOKUP(A42,Tableau6[],2,0)," ") -> 
C43: =IF(A43>0,VLOOKUP(A43,Tableau6[],2,0)," ") -> 
C44: =IF(A44>0,VLOOKUP(A44,Tableau6[],2,0)," ") -> 
C45: =IF(A45>0,VLOOKUP(A45,Tableau6[],2,0)," ") -> 
C46: =IF(A46>0,VLOOKUP(A46,Tableau6[],2,0)," ") -> 
C47: =IF(A47>0,VLOOKUP(A47,Tableau6[],2,0)," ") -> 
C48: =IF(A48>0,VLOOKUP(A48,Tableau6[],2,0)," ") -> 
C49: =IF(A49>0,VLOOKUP(A49,Tableau6[],2,0)," ") -> 
